[Event "3rd Rio Open 2024"]
[Site "Rio de Janeiro"]
[Date "2024.04.26"]
[Round "6.1"]
[White "Fier, Alexandr"]
[Black "Lima, Stefan Moisei VIeira"]
[Result "1-0"]
[ECO "A28"]
[WhiteElo "2566"]
[BlackElo "2176"]
[Annotator "TA"]
[PlyCount "63"]
[EventDate "2024.04.12"]
[EventType "swiss"]
[EventCountry "BRA"]
[SourceTitle "playchess.com"]
[Source "ChessBase"]
[SourceQuality "1"]
[TimeControl "5400+30"]

{[%evp 13,63,0,20,0,6,10,42,17,36,19,55,58,54,30,60,0,55,69,85,55,70,67,64,25,43,41,62,56,94,91,178,186,161,129,127,118,174,169,189,185,210,210,283,232,245,187,315,297,473,453,562,545]} 1. c4 {[%emt 0:00:03]} e5 {[%emt 0:00:13]} 2. Nc3 {[%emt 0:00:13]} Nf6 {[%emt 0:00:11]} 3. Nf3 {[%emt 0:00:08]} Nc6 {[%emt 0:00:07]} 4. d3 {[%emt 0:00:11]} Bb4 {[%emt 0:01:31]} 5. Bd2 {[%emt 0:01:11]} O-O {[%emt 0:00:08]} 6. e3 {[%emt 0:01:22]} d6 {[%emt 0:04:06]} 7. Be2 {[%emt 0:00:44]} Re8 {[%emt 0:00:36]} 8. O-O {[%emt 0:00:04]} Bxc3 {[%emt 0:06:34]} 9. Bxc3 {[%emt 0:00:07]} e4 {[%emt 0:00:07]} 10. Nd4 {[%emt 0:02:07] White is slightly better.} exd3 {[%emt 0:05:55]} 11. Qxd3 {[%emt 0:00:10]} Ne5 {[%emt 0:00:25][%cal Bc6e5,Be5g6,Bg6f4][%mdl 32]} 12. Qc2 {[%emt 0:00:08]} c5 {[%emt 0:00:21]} 13. Nb3 {[%emt 0:00:34][%cal Bd4b3,Bb3d2,Bd2f1][%mdl 32]} b6 {[%emt 0:03:40]} 14. e4 {[%emt 0:04:08]} (14. f3 $14) 14... Qe7 {[%emt 0:01:26]} ({Black should play} 14... Ng6 $11) 15. Rae1 {[%emt 0:02:47]} Ng6 {[%emt 0:02:21]} 16. f3 {[%emt 0:03:12]} Bd7 {[%emt 0:01:45]} 17. Rf2 {[%emt 0:01:35]} a6 {[%emt 0:05:40]} 18. Nd2 {[%emt 0:00:39]} Nf4 {[%emt 0:01:22]} 19. Nf1 {[%emt 0:01:12]} b5 {[%emt 0:00:42]} 20. b3 {[%emt 0:00:05]} Be6 {[%emt 0:01:00]} 21. Ne3 {[%emt 0:00:19]} h5 {[%emt 0:03:41]} (21... Nxe2+ $16 22. Qxe2 (22. Rfxe2 Nh5 $16) 22... b4) 22. Bf1 $18 {[%emt 0:00:44]} bxc4 {[%emt 0:02:27]} 23. Nxc4 {[%emt 0:05:10]} Bxc4 {[%emt 0:02:14]} 24. Bxc4 {[%emt 0:00:34]} Nd7 {[%emt 0:00:31]} (24... h4 $16 25. Kh1 d5 26. exd5 Qd6) 25. Qc1 {[%emt 0:04:42]} Ne6 {[%emt 0:04:50]} 26. f4 {[%emt 0:01:02] Dodges Ne5} Nd4 {[%emt 0:02:59]} 27. Qd1 {[%emt 0:00:11][%csl LRd4,LRh5]} Nb5 {[%emt 0:00:29]} 28. Bb2 {[%emt 0:01:34]} Nf6 {[%emt 0:01:17]} 29. Rff1 {[%emt 0:01:02] [#] Hoping for e5.} d5 {[%emt 0:03:52]} (29... Rad8 $142 30. h3 h4) 30. exd5 {[%emt 0:00:29][%cal Be4d5,Bd5d6][%mdl 32]} ({But not} 30. Bxd5 $6 Nxd5 31. exd5 (31. Qxd5 Rac8 $18) 31... Qa7 $18) 30... Qd6 {[%emt 0:00:14]} (30... Qd8 $142 31. Rxe8+ Nxe8 32. Qxh5 Nd4) 31. Be5 {[%emt 0:00:46] This pair of bishops is nice.} Qb6 {[%emt 0:00:10]} 32. d6 {[%emt 0:00:25] Weighted Error Value: White=0.16 (very precise) /Black=0.43.  Mistake:       	White=1     	Black=5      Inaccurate:     	White=2     	Black=5      OK:         	White=7     	Black=5      Best:        	White=1     	---} 1-0

[Event "3rd Rio Open 2024"]
[Site "Rio de Janeiro"]
[Date "2024.04.26"]
[Round "6.2"]
[White "Ribeiro, Matheus Mendes Domin"]
[Black "Marra, Eduardo da Costa"]
[Result "1/2-1/2"]
[ECO "A36"]
[WhiteElo "2228"]
[BlackElo "2184"]
[Annotator "TA"]
[PlyCount "41"]
[EventDate "2024.04.12"]
[EventType "swiss"]
[EventCountry "BRA"]
[SourceTitle "playchess.com"]
[Source "ChessBase"]
[SourceQuality "1"]
[TimeControl "5400+30"]

{[%evp 16,41,9,0,8,11,27,19,18,0,12,0,0,0,0,0,0,0,0,0,0,0,0,0,0,0,0,0]} 1. c4 {[%emt 0:03:24]} Nf6 {[%emt 0:00:08]} 2. Nc3 {[%emt 0:00:20]} g6 {[%emt 0:00:18]} 3. g3 {[%emt 0:02:01]} Bg7 {[%emt 0:00:12]} 4. Bg2 {[%emt 0:00:07]} O-O {[%emt 0:00:12]} 5. e4 {[%emt 0:01:21]} d6 {[%emt 0:00:17]} 6. d3 {[%emt 0:00:15]} c5 {[%emt 0:00:40]} 7. Nge2 {[%emt 0:00:10]} Nc6 {[%emt 0:00:11]} 8. O-O {[%emt 0:00:09]} Rb8 {[%emt 0:01:23]} 9. h3 {[%emt 0:03:01]} Ne8 {[%emt 0:02:21]} 10. Be3 {[%emt 0:00:43]} Nc7 {[%emt 0:00:23]} 11. d4 {[%emt 0:01:03]} b5 {[%emt 0:00:05] The position is equal.} 12. cxb5 {[%emt 0:11:53]} Nxd4 {[%emt 0:14:43]} 13. Nxd4 {[%emt 0:01:47]} cxd4 {[%emt 0:00:12]} 14. Bxd4 {[%emt 0:00:42]} Nxb5 {[%emt 0:05:02]} 15. Bxg7 {[%emt 0:02:39]} Kxg7 {[%emt 0:00:36]} 16. Nxb5 {[%emt 0:00:54]} Rxb5 {[%emt 0:00:04]} 17. Qd4+ {[%emt 0:00:11]} e5 {[%emt 0:01:12]} 18. Qxa7 {[%emt 0:00:44]} Rxb2 {[%emt 0:00:32]} 19. a4 {[%emt 0:09:04]} Rb6 {[%emt 0:19:12]} 20. Rfd1 {[%emt 0:11:53]} Ra6 {[%emt 0:13:31]} 21. Qe3 {[%emt 0:01:28] An uneventful encounter.   Weighted Error Value: White=0.03 (flawless) /Black=0.04 (flawless) .  OK:         	White=5     	Black=6} 1/2-1/2

[Event "3rd Rio Open 2024"]
[Site "Rio de Janeiro"]
[Date "2024.04.26"]
[Round "6.3"]
[White "Hoffman, Alejandro"]
[Black "Okamura, Milton Kasuo"]
[Result "1-0"]
[ECO "D46"]
[WhiteElo "2379"]
[BlackElo "1950"]
[Annotator "TA"]
[PlyCount "35"]
[EventDate "2024.04.12"]
[EventType "swiss"]
[EventCountry "BRA"]
[SourceTitle "playchess.com"]
[Source "ChessBase"]
[SourceQuality "1"]
[TimeControl "5400+30"]

{[%evp 21,35,27,38,19,39,5,5,13,6,2,14,21,244,241,539,541]} 1. Nf3 {[%emt 0:00:05]} d5 {[%emt 0:01:31]} 2. c4 {[%emt 0:00:08]} c6 {[%emt 0:00:35]} 3. e3 {[%emt 0:00:37]} Nf6 {[%emt 0:00:14]} 4. b3 {[%emt 0:00:21]} e6 {[%emt 0:02:04]} 5. Bb2 {[%emt 0:00:17]} Be7 {[%emt 0:00:12]} 6. d4 {[%emt 0:00:24]} Nbd7 {[%emt 0:00:50]} 7. Nc3 {[%emt 0:00:24]} O-O {[%emt 0:00:53]} 8. Bd3 {[%emt 0:00:07]} b6 {[%emt 0:02:27]} 9. O-O {[%emt 0:00:13]} Bb7 {[%emt 0:00:12]} 10. Qe2 {[%emt 0:00:34]} Re8 {[%emt 0:01:40]} 11. Rad1 {[%emt 0:00:44]} Bd6 {[%emt 0:09:16]} 12. e4 {[%emt 0:02:36] [#] And now e5 would win.} e5 {[%emt 0:02:08]} 13. cxd5 {[%emt 0:01:06]} cxd5 {[%emt 0:04:09]} 14. dxe5 {[%emt 0:01:19] The position is equal.} Nxe5 {[%emt 0:01:12]} 15. Nxd5 {[%emt 0:07:34]} Nxd5 {[%emt 0:05:36]} 16. exd5 {[%emt 0:00:27]} Nc4 {[%emt 0:07:26] [#]} 17. Bxh7+ $18 {[%emt 0:00:34]} Kh8 $2 {[%emt 0:00:21]} (17... Kxh7 {was called for.} 18. Qc2+ (18. Qxc4 Kg8 $18) 18... Kg8) 18. Qxc4 {[%emt 0:00:09] Weighted Error Value: White=0.13 (very precise) /Black=1.46.  Loses game:     	---       	Black=1      Mistake:       	---       	Black=1      Inaccurate:     	White=1     	---        OK:         	White=1     	Black=1      Best:        	White=2     	---} 1-0

[Event "3rd Rio Open 2024"]
[Site "Rio de Janeiro"]
[Date "2024.04.26"]
[Round "6.4"]
[White "De Albuquerque, Ian Telek C."]
[Black "Labussiere, Yago"]
[Result "1/2-1/2"]
[ECO "B30"]
[WhiteElo "2134"]
[BlackElo "2184"]
[Annotator "TA"]
[PlyCount "57"]
[EventDate "2024.04.12"]
[EventType "swiss"]
[EventCountry "BRA"]
[SourceTitle "playchess.com"]
[Source "ChessBase"]
[SourceQuality "1"]
[TimeControl "5400+30"]

{[%evp 9,57,32,42,37,41,3,14,3,1,0,22,0,0,-12,-9,-17,4,0,6,17,55,50,45,8,24,0,9,0,0,0,10,0,3,-3,0,-10,-8,-27,-18,-24,-35,-54,-42,-55,0,-48,0,-41,0,-54]} 1. e4 {[%emt 0:00:03]} c5 {[%emt 1:31:00]} 2. Nf3 {[%emt 0:01:56]} Nc6 {[%emt 0:00:00]} 3. Nc3 {[%emt 0:01:04]} Nf6 {[%emt 0:00:00]} 4. Bb5 {[%emt 0:00:07]} Qc7 {[%emt 0:00:00]} 5. d3 {[%emt 0:00:29]} g6 {[%emt 0:00:00]} 6. O-O {[%emt 0:04:49]} Bg7 {[%emt 0:00:00]} 7. h3 {[%emt 0:03:34]} O-O {[%emt 0:00:00]} 8. Be3 {[%emt 0:06:09]} d6 {[%emt 0:00:00]} 9. a4 {[%emt 0:06:19]} e5 {[%emt 0:00:00]} 10. Nd2 {[%emt 0:12:15]} Be6 {[%emt 0:00:00]} 11. f4 {[%emt 0:03:33]} exf4 {[%emt 0:00:00]} 12. Bxf4 {[%emt 0:00:05]} Nd7 {[%emt 0:00:00][%cal Bf6d7,Bd7e5,Be5c6][%mdl 32]} 13. Nc4 {[%emt 0:07:08]} Nde5 {[%emt 0:00:00]} 14. Ne3 {[%emt 0:01:32]} Ne7 {[%emt 0:00:00]} 15. Bc4 {[%emt 0:10:11]} Qd7 {[%emt 0:00:00]} 16. Bd5 {[%emt 0:15:04]} N5c6 {[%emt 0:00:00]} 17. Qd2 {[%emt 0:07:54]} Bxd5 {[%emt 0:00:00]} 18. Ncxd5 {[%emt 0:01:14]} Nxd5 {[%emt 0:00:00]} 19. Nxd5 {[%emt 0:00:12]} Ne7 {[%emt 0:00:00]} 20. Nxe7+ {[%emt 0:04:40]} Qxe7 {[%emt 0:00:00]} 21. c3 {[%emt 0:00:01]} Rae8 {[%emt 0:00:00]} 22. Rfe1 {[%emt 0:06:53]} Qd7 {[%emt 0:10:30]} 23. Re3 {[%emt 0:05:38]} Re6 {[%emt 0:00:00]} 24. Qe2 {[%emt 0:00:24]} Rfe8 {[%emt 0:00:00]} 25. Qf3 {[%emt 0:00:32]} Rf6 {[%emt 0:00:00] [#] ...g5 would now be deadly.} 26. Qg3 {[%emt 0:00:27]} Rfe6 {[%emt 0:00:00]} 27. Qf3 {[%emt 0:00:13]} Rf6 {[%emt 0:00:00] Strongly threatening ...g5.} 28. Qg3 {[%emt 0:00:13]} Rfe6 {[%emt 0:00:00]} 29. Qf3 $1 {[%emt 0:02:21] Weighted Error Value: White=0.11 (very precise) /Black=0.12 (very precise) .  Inaccurate:     	White=2     	Black=1      OK:         	White=4     	Black=8      Best:        	---       	Black=1      Strong:       	White=1     	---} 1/2-1/2

[Event "3rd Rio Open 2024"]
[Site "Rio de Janeiro"]
[Date "2024.04.26"]
[Round "6.5"]
[White "Terao, Juliana Sayumi"]
[Black "Casalaspro, Mathias Andre"]
[Result "1/2-1/2"]
[ECO "B10"]
[WhiteElo "2179"]
[BlackElo "2107"]
[Annotator "TA"]
[PlyCount "24"]
[EventDate "2024.04.12"]
[EventType "swiss"]
[EventCountry "BRA"]
[SourceTitle "playchess.com"]
[Source "ChessBase"]
[SourceQuality "1"]
[TimeControl "5400+30"]

{[%evp 9,24,5,2,-23,-20,-24,49,39,52,55,62,75,59,0,78,0,60]} 1. e4 {[%emt 0:09:09]} c6 {[%emt 0:00:12]} 2. Nf3 {[%emt 0:00:38]} d5 {[%emt 0:00:20]} 3. exd5 {[%emt 0:00:08]} cxd5 {[%emt 0:00:05]} 4. Ne5 {[%emt 1:22:35]} Nc6 {[%emt 0:00:13]} 5. d4 {[%emt 0:00:00]} e6 {[%emt 0:00:12]} 6. c3 {[%emt 0:00:00]} Bd6 {[%emt 1:32:28]} 7. f4 {[%emt 0:00:00]} Bd7 {[%emt 0:00:00]} ({Black should try} 7... Nge7 $11) 8. Bd3 {[%emt 0:00:00] White is slightly better.} Qh4+ {[%emt 0:00:00]} 9. g3 {[%emt 0:00:00]} Qh3 {[%emt 0:00:00]} 10. Bf1 {[%emt 0:00:00] White is more active.} Qf5 {[%emt 0:00:00]} 11. Bd3 {[%emt 0:00:00] Inhibits Qe4+.} Qh3 {[%emt 0:00:00]} 12. Bf1 {[%emt 0:00:00]} Qf5 {[%emt 0:00:00] Weighted Error Value: White=0.29 (precise) /Black=0.16 (very precise) .  Mistake:       	---       	Black=1      OK:         	White=2     	Black=3      Best:        	White=1     	Black=1} 1/2-1/2

[Event "3rd Rio Open 2024"]
[Site "Rio de Janeiro"]
[Date "2024.04.26"]
[Round "6.6"]
[White "Rangel, Daniel"]
[Black "Librelato, Kathie Goulart"]
[Result "1/2-1/2"]
[ECO "D46"]
[WhiteElo "2160"]
[BlackElo "2165"]
[Annotator "TA"]
[PlyCount "62"]
[EventDate "2024.04.12"]
[EventType "swiss"]
[EventCountry "BRA"]
[SourceTitle "playchess.com"]
[Source "ChessBase"]
[SourceQuality "1"]
[TimeControl "5400+30"]

{[%evp 22,62,27,29,38,26,26,16,33,20,13,13,17,29,37,23,26,11,33,20,25,19,32,0,0,-7,0,0,0,3,27,13,5,8,9,0,0,0,0,0,0,0,14]} 1. d4 {[%emt 0:01:06]} d5 {[%emt 0:00:08]} 2. c4 {[%emt 0:00:58]} e6 {[%emt 0:00:07]} 3. e3 {[%emt 0:01:04]} Nf6 {[%emt 0:00:59]} 4. Nf3 {[%emt 0:00:22]} c6 {[%emt 0:00:54]} 5. Nc3 {[%emt 0:00:14]} Nbd7 {[%emt 0:00:08]} 6. Qc2 {[%emt 0:00:34]} Bd6 {[%emt 0:00:22]} 7. Bd3 {[%emt 0:00:28]} dxc4 {[%emt 0:00:19]} 8. Bxc4 {[%emt 0:00:06]} b5 {[%emt 0:00:04]} 9. Be2 {[%emt 0:00:04]} Bb7 {[%emt 0:00:18]} 10. O-O {[%emt 0:00:22]} O-O {[%emt 0:00:25]} 11. Rd1 {[%emt 0:04:21]} Qc7 {[%emt 0:00:24]} 12. e4 {[%emt 0:00:25]} e5 {[%emt 0:00:12]} 13. Bg5 {[%emt 0:00:10]} exd4 {[%emt 0:00:31]} 14. Rxd4 {[%emt 0:00:05] next Bxf6 is good for White.} Ne5 {[%emt 0:00:17]} 15. Bxf6 {[%emt 0:01:18]} gxf6 {[%emt 0:00:30]} 16. g3 {[%emt 1:26:53]} Bc5 {[%emt 1:32:52] [#] White must now prevent ...Nxf3+.} 17. Rd2 {[%emt 0:00:30]} Qb6 {[%emt 0:00:30]} 18. Rf1 {[%emt 0:00:30]} Rad8 {[%emt 0:00:30]} 19. Nxe5 {[%emt 0:00:30]} fxe5 {[%emt 0:00:30]} 20. Bg4 {[%emt 0:00:30]} Bd4 {[%emt 0:00:30]} 21. Qd1 {[%emt 0:00:30]} c5 {[%emt 0:00:30]} 22. Qf3 {[%emt 0:00:30]} b4 {[%emt 0:00:30]} 23. Nd5 {[%emt 0:00:30] [#]} Rxd5 {[%emt 0:00:30]} 24. exd5 {[%emt 0:00:30]} Qd6 {[%emt 0:00:30]} 25. Bf5 {[%emt 0:00:30]} Bxd5 {[%emt 0:00:30]} 26. Qg4+ {[%emt 0:00:00]} Kh8 {[%emt 0:00:30] The position is equal.} 27. Qh4 {[%emt 0:01:00][%csl Gf5][%cal Rh4h7] Chess con chili.} (27. Qh3 $5 h6 $8 28. Rc1 $11) 27... h6 {[%emt 0:00:30]} 28. Rc1 {[%emt 0:00:30][%cal Oc1c5] Hoping for Rxc5!} Kg7 {[%emt 0:00:30]} 29. Qg4+ {[%emt 0:00:30]} Kh8 {[%emt 0:00:30]} 30. Qh4 {[%emt 0:00:00][%cal Oc1c5] Rxc5! is the strong threat.} Kg7 {[%emt 0:00:30]} 31. Qg4+ {[%emt 0:00:00]} Kh8 {[%emt 0:00:30] Weighted Error Value: White=0.04 (flawless) /Black=0.05 (flawless) .  Inaccurate:     	White=1     	---        OK:         	White=8     	Black=10     Best:        	---       	Black=1} 1/2-1/2

[Event "3rd Rio Open 2024"]
[Site "Rio de Janeiro"]
[Date "2024.04.27"]
[Round "7.1"]
[White "Ribeiro, Matheus Mendes Domin"]
[Black "Fier, Alexandr"]
[Result "0-1"]
[ECO "B13"]
[WhiteElo "2228"]
[BlackElo "2566"]
[Annotator "TA"]
[PlyCount "105"]
[EventDate "2024.04.12"]
[EventType "swiss"]
[EventCountry "BRA"]
[SourceTitle "playchess.com"]
[Source "ChessBase"]
[SourceQuality "1"]
[TimeControl "5400+30"]

{[%evp 13,105,14,10,-5,16,-25,-33,-75,-60,-61,-64,-69,-63,-64,-54,-60,-64,-66,-66,-67,-62,-71,-69,-93,-91,-87,-90,-106,-105,-108,-110,-122,-104,-105,-91,-91,-100,-91,-104,-99,-64,-63,-57,-56,-56,-133,-133,-214,-133,-220,-213,-207,-200,-253,-253,-293,-260,-592,-594,-583,-565,-553,-425,-642,-648,-650,-650,-650,-650,-998,-970,-996,-981,-981,-818,-847,-730,-716,-642,-650,-1180,-1180,-642,-600,-562,-29957,-6091,-29978,-29979,-29979,-29980,-29982,-29983,-29985]} 1. c4 {[%emt 0:00:38]} c5 {[%emt 0:00:06]} 2. Nc3 {[%emt 0:00:46]} Nf6 {[%emt 0:00:04]} 3. Nf3 {[%emt 0:00:30]} Nc6 {[%emt 0:00:05]} 4. e3 {[%emt 0:06:49]} a6 {[%emt 0:02:23]} 5. d4 {[%emt 0:01:34]} cxd4 {[%emt 0:00:10]} 6. exd4 {[%emt 0:00:22]} d5 {[%emt 0:00:05]} 7. cxd5 {[%emt 0:02:18]} Nxd5 {[%emt 0:00:05]} 8. Bc4 {[%emt 0:03:45]} Be6 {[%emt 0:00:11] [#] Hoping for ...Nxc3.} 9. Qe2 {[%emt 0:05:27]} Rc8 {[%emt 0:05:50]} 10. Nxd5 {[%emt 0:12:17] Black is slightly better.} Bxd5 {[%emt 0:00:12]} 11. Bxd5 {[%emt 0:00:24]} Qxd5 {[%emt 0:00:06]} 12. O-O {[%emt 0:00:06]} e6 {[%emt 0:00:50]} 13. Be3 {[%emt 0:06:09][%cal Of3e5]} Be7 {[%emt 0:01:02]} 14. Rfc1 {[%emt 0:02:45][%cal Of3e5]} O-O {[%emt 0:00:06]} 15. Qc4 {[%emt 0:01:14]} Rcd8 {[%emt 0:04:34]} 16. h3 {[%emt 0:07:31]} Bf6 {[%emt 0:00:58]} 17. Qxd5 {[%emt 0:04:31]} Rxd5 {[%emt 0:00:10]} 18. Rc4 {[%emt 0:00:04]} Rfd8 {[%emt 0:00:06]} 19. Rac1 {[%emt 0:00:28]} g6 {[%emt 0:01:26]} (19... Bxd4 $2 {perishes.} 20. Nxd4 Ne7 (20... Nxd4 $2 21. Rxd4 Rxd4 22. Bxd4 $18) 21. Rc7 $18) 20. b4 {[%emt 0:06:31]} Nxd4 {[%emt 0:01:43] Black is more active.} 21. Nxd4 {[%emt 0:04:27]} Bxd4 {[%emt 0:00:05]} 22. Rc7 {[%emt 0:07:16]} Bxe3 {[%emt 0:05:52]} 23. fxe3 {[%emt 0:00:05]} Rd1+ {[%emt 0:00:03]} 24. Rxd1 {[%emt 0:02:05]} Rxd1+ $17 {[%emt 0:00:03][%mdl 4096] Endgame. KR-KR} 25. Kh2 {[%emt 0:00:40]} b5 {[%emt 0:01:23] ...Rd3 would now be deadly.} 26. Rc6 {[%emt 0:00:39]} Re1 {[%emt 0:00:07]} 27. Rxa6 {[%emt 0:00:49]} Rxe3 {[%emt 0:00:04]} 28. Ra5 $1 {[%emt 0:01:06]} Re2 {[%emt 0:00:47]} 29. Rxb5 {[%emt 0:01:45] Black continues to play with concentration.} (29. a3 $15) 29... Rxa2 {[%emt 0:00:04]} 30. Rb8+ {[%emt 0:01:29]} Kg7 {[%emt 0:00:04]} 31. b5 {[%emt 0:02:30]} (31. h4 $17) 31... Rb2 {[%emt 0:00:04]} 32. Kg3 {[%emt 0:01:55]} g5 {[%emt 0:00:33]} 33. b6 {[%emt 0:01:14]} h5 {[%emt 0:00:03]} 34. Kf3 {[%emt 0:02:04]} h4 {[%emt 0:00:19]} 35. b7 $2 {[%emt 0:00:04]} (35. Rb7) 35... Rb4 $19 {[%emt 0:00:30]} 36. Ke3 {[%emt 0:01:19] [#]} Kf6 $1 {[%emt 0:00:05]} 37. Kd3 {[%emt 0:00:17]} Kf5 {[%emt 0:00:04] ...Kf4 is the strong threat.} 38. Kc3 {[%emt 0:15:37]} (38. Ke3 $142) 38... Rb1 {[%emt 0:00:05]} 39. Kc4 {[%emt 0:00:00]} Kf4 {[%emt 0:05:50]} 40. Kc5 {[%emt 0:00:00]} Kg3 {[%emt 0:00:04]} 41. Rg8 {[%emt 0:00:00]} Rxb7 {[%emt 0:00:21]} 42. Rxg5+ {[%emt 0:00:00]} Kf2 {[%emt 0:00:03]} 43. Kd6 {[%emt 0:00:00]} Rb4 {[%emt 0:03:18] Strongly threatening ...Rd4+.} 44. Rg7 {[%emt 0:00:00]} Rf4 {[%emt 0:00:05] aiming for ...Rd4+.} 45. Ke5 {[%emt 0:00:00]} Ke3 {[%emt 0:00:10] White must now prevent ...Rf5+.} 46. Rh7 {[%emt 0:00:00]} Rf5+ {[%emt 0:00:05]} 47. Kd6 {[%emt 0:00:00]} Kf2 {[%emt 0:00:12]} 48. Rxh4 {[%emt 0:00:00]} Kxg2 {[%emt 0:00:04]} 49. Rh7 {[%emt 0:00:00]} e5 {[%emt 0:01:25] ( -> ...e4)} 50. Kd5 {[%emt 0:04:57]} Kf3 {[%emt 0:00:04] Black mates.} 51. Rh4 {[%emt 0:00:12]} e4+ {[%emt 0:00:06]} 52. Kd4 {[%emt 0:00:01]} e3 {[%emt 0:00:10]} 53. Rg4 {[%emt 0:02:20] Weighted Error Value: White=0.63/Black=0.19 (very precise) .  Mistake:       	White=4     	---        Inaccurate:     	White=3     	Black=2      OK:         	White=8     	Black=11     Best:        	White=3     	Black=5      Strong:       	White=1     	Black=1} 0-1

[Event "3rd Rio Open 2024"]
[Site "Rio de Janeiro"]
[Date "2024.04.27"]
[Round "7.2"]
[White "Piccoli, Lucas Fonseca"]
[Black "Hoffman, Alejandro"]
[Result "1/2-1/2"]
[ECO "C41"]
[WhiteElo "2274"]
[BlackElo "2379"]
[Annotator "TA"]
[PlyCount "20"]
[EventDate "2024.04.12"]
[EventType "swiss"]
[EventCountry "BRA"]
[SourceTitle "playchess.com"]
[Source "ChessBase"]
[SourceQuality "1"]
[TimeControl "5400+30"]

{[%evp 11,20,34,35,31,46,39,56,61,60,31,20]} 1. e4 {[%emt 0:02:26]} d6 {[%emt 0:00:15]} 2. d4 {[%emt 0:00:13]} Nf6 {[%emt 0:00:09]} 3. Nc3 {[%emt 0:00:06]} e5 {[%emt 0:00:09]} 4. Nf3 {[%emt 0:00:07]} exd4 {[%emt 0:00:22]} 5. Nxd4 {[%emt 0:00:08]} Be7 {[%emt 0:00:06]} 6. g3 {[%emt 0:00:07]} O-O {[%emt 0:00:08] White is slightly better.} 7. Bg2 {[%emt 0:00:05]} c6 {[%emt 0:00:08]} 8. O-O {[%emt 0:00:19]} Re8 {[%emt 0:00:08]} 9. h3 {[%emt 0:00:53]} a5 {[%emt 0:00:43]} 10. a4 {[%emt 0:01:28]} Na6 {[%emt 0:00:30] White got outplayed after the opening.   Weighted Error Value: White=0.07 (flawless) /Black=0.08 (flawless) .  Inaccurate:     	White=1     	---        OK:         	White=1     	Black=1} 1/2-1/2